{"text_format":"1","workbook":"xlsx","n_sheets":1,"sheets":["Лист1 (3)"],"not_rendered":{"charts":0,"images":0,"macros":0,"external_links":0,"defined_names":1,"comments":0,"pivot_tables":0},"unopened":[],"bounds":{"document_bytes":16777216,"sheet_cells":100000,"rows_first":2000,"rows_last":500,"rows_between":2000,"halvings":0,"cell_chars":16384,"cell_head_chars":4096},"cells_cut":0,"cells_raw":0,"read":"whole","date_system":"1900"}

{"sheet":"Лист1 (3)","index":0,"n_rows":113,"n_cols":8,"rows_kept":113,"cut":false,"hidden":false,"merged":[[5,0,5,5],[6,0,6,5],[3,1,3,5],[2,1,2,5]]}
[null,null,null,null,null,"Приложение №7"]
[]
[]
[]
[]
["Ведомственная структура расходов местного  бюджета"]
["на 2011 год"]
[null,null,null,null,null,"т.р"]
[null,"Глава ","РзПр","ЦСР","ВР","Сумма"]
["АДМИНИСТРАЦИЯ  КОСТЫЛЕВСКОГО   СЕЛЬСОВЕТА ","099",null,null,null,{"$f":"F11+F42+F48+F54+F60+F66+F74+F80+F86+F92+F108+F37+F34","v":2752.2999999999997}]
["ОБЩЕГОСУДАРСТВЕННЫЕ ВОПРОСЫ","099","0100",null,null,{"$f":"F12+F16+F24+F28","v":744.6}]
["Функционирование высшего должностного лица субъекта Российской Федерации и муниципального образования","099","0102",null,null,{"$f":"F13","v":201.6}]
["Руководство и управление в сфере установленных функций  органов государственной власти субъектов Российской Федерации и органов местного самоуправления                              ","099","0102","0020000",null,{"$f":"F14","v":201.6}]
["Глава муниципального образования","099","0102","0020300",null,{"$f":"F15","v":201.6}]
["Выполнение функций органами местного самоуправления","099","0102","0020300","500",201.6]
["Функционирование законодательных (представительных) органов государственной власти и представительных органов муниципальных образований","099","0103",null,null,0]
["Руководство и управление в сфере установленных функций  органов государственной власти субъектов Российской Федерации и органов местного самоуправления                              ","099","0103","0020000"]
["Центральный аппарат","099","0103","0020400"]
["Выполнение функций органами местного самоуправления","099","0103","0020400","500"]
["Председатель представительного органа муниципального образования","099","0103","0021100"]
["Выполнение функций органами местного самоуправления","099","0103","0021100","500"]
["Депутаты представительного органа муниципального образования","099","0103","0021200"]
["Выполнение функций органами местного самоуправления","099","0103","0021200","500"]
["Функционирование Правительства  Российской Федерации, высших исполнительных органов государственной  власти субъектов Российской Федерации, местных администраций","099","0104",null,null,{"$f":"F25","v":541.1}]
["Руководство и управление в сфере установленных функций  органов государственной власти субъектов Российской Федерации и органов местного самоуправления                              ","099","0104","0020000",null,{"$f":"F26","v":541.1}]
["Центральный аппарат","099","0104","0020400",null,{"$f":"F27","v":541.1}]
["Выполнение функций органами местного самоуправления","099","0104","0020400","500",541.1]
["Расходы на осуществление федеральных полномочий по государственной регистрации актов гражданского состояния","099",null,null,null,{"$f":"F29","v":1.9}]
["ОБЩЕГОСУДАРСТВЕННЫЕ ВОПРОСЫ","099","0100",null,null,{"$f":"F30","v":1.9}]
["Другие общегосударственные вопросы","099","0113",null,null,{"$f":"F31","v":1.9}]
["Руководство и управление в сфере установленных функций","099","0113","0010000",null,{"$f":"F32","v":1.9}]
["Государственная регистрация актов гражданского состояния","099","0113","0013800",null,{"$f":"F33","v":1.9}]
["Выполнение функций органами местного самоуправления","099","0113","0013800","500",1.9]
["ДРУГИЕ  ОБЩЕГОСУДАРСТВЕННЫЕ  ВОПРОСЫ",".099","0113",null,null,{"$f":"F35","v":1.2}]
["ДРУГИЕ  ОБЩЕГОСУДАРСТВЕННЫЕ  ВОПРОСЫ",".099","0113","0920300",null,{"$f":"F36","v":1.2}]
["Выполнение  фунций органами местного самоуправления",".099","0113","0920300","500",1.2]
["Национальная оборона ","099","0200",null,null,{"$f":"F38","v":45.4}]
["Мобилизация и вневойсковая подготовка","099","0203",null,null,{"$f":"F39","v":45.4}]
["Руководство и управление в сфере установленных функций","099","0203","0010000",null,{"$f":"F40","v":45.4}]
["Осуществление первичного воинского учета на территориях,где отсутствуют воинские комиссариаты","099","0203","0013600",null,{"$f":"F41","v":45.4}]
["Выполнение функций органами местного самоуправления","099","0203","0013600","500",45.4]
["Расходы на мероприятия по предупреждению и ликвидации последствий чрезвычайных ситуаций и стихийных бедствий","099",null,null,null,0]
["НАЦИОНАЛЬНАЯ БЕЗОПАСНОСТЬ И ПРАВООХРАНИТЕЛЬНАЯ ДЕЯТЕЛЬНОСТЬ","099","0300"]
["Предупреждение и ликвидация последствий чрезвычайных ситуаций  природного и техногенного характера, гражданская оборона","099","0309"]
["Мероприятия по предупреждению и ликвидации последствий чрезвычайных ситуаций и стихийных бедствий","099","0309","2180000"]
["Предупреждение и ликвидация последствий чрезвычайных ситуаций и стихийных бедствий  природного и техногенного характера","099","0309","2180100"]
["Выполнение функций органами местного самоуправления","099","0309","2180100","500"]
["Расходы на обеспечение пожарной безопасности","099",null,null,null,{"$f":"F49","v":1237.5}]
["НАЦИОНАЛЬНАЯ БЕЗОПАСНОСТЬ И ПРАВООХРАНИТЕЛЬНАЯ ДЕЯТЕЛЬНОСТЬ","099","0300",null,null,{"$f":"F50","v":1237.5}]
["Обеспечение пожарной безопасности","099","0310",null,null,{"$f":"F51","v":1237.5}]
["Функционирование органов  в сфере национальной безопасности и провоохранительной  деятельности","099","0310","2026700",null,{"$f":"F53","v":1237.5}]
["Обеспечение деятельности подведомственных учреждений","099","0310","2479900",null,313]
["Функционирование органов  в сфере национальной безопасности,и провоохранительной  деятельности и обороны ","099","0310","2026700","014",1237.5]
["Расходы на информационные технологии","099",null,null,null,0]
["Национальная экономика","099","0400"]
["Связь и информатика","099","0410"]
["Информационные технологии и связь","099","0409",3300000]
["Информатика","099","0409","3308200"]
["Выполнение функций органами местного самоуправления","099","0409","3308200","500"]
["Национальная экономика","099",null,null,null,{"$f":"F61","v":0}]
["Осуществление полномочий в области содействия занятости населения","099","0401",null,null,{"$f":"F62","v":0}]
["Руководство и управление в сфере установленных функций","099","0401","5100000",null,{"$f":"F63","v":0}]
[null,null,null,null,null,{"$f":"F64","v":0}]
[null,null,null,null,null,{"$f":"F65","v":0}]
["Выполнение функций органами местного самоуправления","099","0401","5100303","500",0]
["Расходы на жилищно-коммунальное хозяйство","099",null,null,null,{"$f":"F67","v":0}]
["ЖИЛИЩНО-КОММУНАЛЬНОЕ ХОЗЯЙСТВО","099","0500",null,null,{"$f":"F68","v":0}]
["Благоустройство","099","0503",null,null,{"$f":"F69","v":0}]
["Благоустройство","099","0503","6000000",null,{"$f":"F70+            F72","v":0}]
["Содержание автомобильных дорог и инженерных сооружений на них в границах городских округов и поселений в рамках благоустройства","099","0503","6000200",null,{"$f":"F71","v":0}]
["Выполнение функций органами местного самоуправления","099","0503","6000200","500",0]
["Прочие мероприятия по благоустройству городских округов и поселений","099","0503","6000500",null,{"$f":"F73","v":0}]
["Выполнение функций органами местного самоуправления","099","0503","6000500","500",0]
["Расходы на природоохранные мероприятия","099",null,null,null,{"$f":"F75","v":3.4}]
["ОХРАНА ОКРУЖАЮЩЕЙ СРЕДЫ","099","0600",null,null,{"$f":"F76","v":3.4}]
["Охрана объектов растительного и животного мира и среды их обитания","099","0603",null,null,{"$f":"F77","v":3.4}]
["Состояние  окружающей среды и природопользования","099","0603","4100000",null,{"$f":"F78","v":3.4}]
["Природоохранные мероприятия","099","0603","4100100",null,{"$f":"F79","v":3.4}]
["Выполнение функций органами местного самоуправления","099","0603","4100100","500",3.4]
["Расходы на организацию занятости несовершеннолетних","099",null,null,null,0]
["ОБРАЗОВАНИЕ","099","0700"]
["Молодежная политика и оздоровление детей","099","0707"]
["Организационно-воспитательная работа с молодежью","099","0707",4310000]
["Проведение мероприятий для детей и молодежи","099","0707","4310100"]
["Выполнение функций органами местного самоуправления","099","0707","4310100","500"]
["Расходы на оздоровление детей","099",null,null,null,0]
["Образование","099","0700"]
["Молодежная политика и оздоровление детей","099","0707"]
["Мероприятия по проведению оздоровительной кампании детей","099","0707","4320000"]
["Оздоровление детей","099","0707","4320200"]
["Выполнение функций органами местного самоуправления","099","0707","4320100","500"]
["Расходы на культуру, кинематографию и средства массовой информации","099",null,null,null,{"$f":"F93","v":720.2}]
["КУЛЬТУРА, КИНЕМАТОГРАФИЯ И СРЕДСТВА МАССОВОЙ ИНФОРМАЦИИ","099","0800",null,null,{"$f":"F94","v":720.2}]
["Культура","099","0801",null,null,{"$f":"F95+F102","v":720.2}]
["Дворцы и дома культуры, другие учреждения культуры и средств массовой информации","099","0801",4400000,null,{"$f":"F96","v":480.6}]
["Обеспечение деятельности подведомственных учреждений","099","0801","4409900",null,{"$f":"F97+F98+F100","v":480.6}]
["Выполнение функций бюджетными учреждениями","099","0801","4409900","001",448.6]
["Расходы за счет  предпринимательской и иной приносящей доход деятельности","099","0801","4409900",998,0]
[]
["Субвенция на исполнения госуд.полномочий в области культурной деятельн.","099","0801","5208300",null,{"$f":"F101","v":32}]
["Выполнение функций органами местного самоуправления","099","0801","5208300","001",32]
["Библиотеки                                                                           ","099","0801",4420000,null,{"$f":"F103","v":239.6}]
["Обеспечение деятельности подведомственных учреждений","099","0801","4429900",null,{"$f":"F104+F107+F105","v":239.6}]
["Выполнение функций бюджетными учреждениями","099","0801","4429900","001",202.6]
["Расходы за счет  предпринимательской и иной приносящей доход деятельности","099","0801","4429900",998,2]
["Субвенция на исполнения госуд.полномочий в области библиотечной деятельн.","099","0801","5208200",null,{"$f":"F107","v":35}]
["Выполнение функций органами местного самоуправления","099","0801","5208200","001",35,null," "]
["Расходы на финансирование физкультурных мероприятий","099",null,null,null,0]
["ЗДРАВООХРАНЕНИЕ,ФИЗИЧЕСКАЯ КУЛЬТУРА  И СПОРТ","099","0900"]
["Физическая культура и спорт","099","0908"]
["Физкультурно-оздоровительная работа и спортивные мероприятия","099","0908","5120000"]
["Мероприятия в области здравоохранения спорта и физической культуры, туризма","099","0908","5129700"]
["Выполнение функций органами местного самоуправления","099","0908",null,"500"]